fUST/lending_fUST_20250312
["ID","MTS","AMOUNT","RATE_DAILY","PERIOD"]
[356000051,1741791043521,-500.0,0.00021917,2]
[356000052,1741791043530,-500.0,0.00021917,2]
[356000053,1741791043540,-500.0,0.00021917,2]
[356000054,1741791043551,-770.45,0.00021917,2]
[356000055,1741791043560,-500.0,0.00021917,2]
[356000056,1741791043569,-505.20966882,0.00021917,2]
[356000057,1741791043578,-500.0,0.00021917,2]
[356000058,1741791043587,-500.0,0.00021917,2]
[356000059,1741791043597,-603.45380143,0.00021917,2]
[356000060,1741791043606,-6470.55,0.00021917,2]
[356000061,1741791043615,-508.23769914,0.00021917,2]
[356000062,1741791043625,-808.52,0.00021917,2]
[356000063,1741791043634,-500.0,0.00021917,2]
[356000064,1741791043643,-1766.1,0.00021917,2]
[356000065,1741791043653,-2456.6938365,0.00021918,2]
[356000066,1741791043662,-1293.8017276,0.00021918,7]
[356000067,1741791043672,-500.0,0.00021973,2]
[356000068,1741791043682,-500.0,0.00021973,2]
[356000069,1741791043691,-500.0,0.00022,2]
[356000070,1741791043701,-500.0,0.00022,2]
[356000071,1741791043710,-500.0,0.00022,2]
[356000072,1741791043720,-500.0,0.00022,2]
[356000073,1741791043729,-810.72619875,0.00022,2]
[356000074,1741791043738,-648.07551672,0.00022,2]
[356000075,1741791043747,-500.0,0.00022,2]
[356000076,1741791043757,-500.0,0.00022,2]
[356000077,1741791043766,-644.65285909,0.00022,2]
[356000078,1741791043775,-600.0,0.00022,2]
[356000079,1741791043785,-600.0,0.00022,2]
[356000080,1741791043794,-600.0,0.00022,2]
[356000081,1741791043804,-600.0,0.00022,2]
[356000082,1741791043813,-600.0,0.00022,2]
[356000083,1741791043823,-600.0,0.00022,2]
[356000084,1741791043832,-600.0,0.00022,2]
[356000085,1741791043842,-600.0,0.00022,2]
[356000086,1741791043851,-600.0,0.00022,2]
[356000087,1741791043860,-600.0,0.00022,2]
[356000088,1741791043869,-600.0,0.00022,2]
[356000089,1741791043879,-600.0,0.00022,2]
[356000090,1741791043887,-617.6802274,0.00022,2]
[356000091,1741791043897,-509.35314078,0.00022052,2]
[356000092,1741791043906,-1000.0,0.00022052,2]
[356000093,1741791043916,-1028.53709032,0.00022052,2]
[356000094,1741791043925,-1000.0,0.00022052,2]
[356000095,1741791043935,-1000.0,0.00022052,2]
[356000096,1741791043945,-1000.0,0.00022052,2]
[356000097,1741791043954,-1000.0,0.00022052,2]
[356000098,1741791043964,-1000.0,0.00022052,2]
[356000099,1741791043973,-1000.0,0.00022052,2]
[356000100,1741791043982,-1000.0,0.00022052,2]
[356000101,1741791043992,-292.12321373,0.00022052,2]
[356000102,1741791044001,-1000.0,0.00022052,2]
[356000103,1741791044011,-1000.0,0.00022052,2]
[356000104,1741791044020,-1000.0,0.00022052,2]
[356000105,1741791044029,-1000.0,0.00022052,2]
[356000106,1741791044039,-1000.0,0.00022052,2]
[356000107,1741791044051,-1000.0,0.00022052,2]
[356000108,1741791044060,-1000.0,0.00022052,2]
[356000110,1741791044070,-1000.0,0.00022052,2]
[356000112,1741791044079,-500.0,0.00022052,2]
[356000113,1741791044088,-1000.0,0.00022052,2]
[356000115,1741791044098,-1000.0,0.00022052,2]
[356000117,1741791044108,-500.0,0.00022173,2]
[356000118,1741791044117,-500.0,0.00022173,2]
[356000120,1741791044127,-500.0,0.00022173,2]
[356000122,1741791044136,-500.0,0.00022173,2]
[356000123,1741791044145,-500.0,0.00022173,2]
[356000124,1741791044154,-500.0,0.00022173,2]
[356000125,1741791044164,-503.57799636,0.00022191,2]
[356000126,1741791044173,-500.0,0.00022191,2]
[356000127,1741791044182,-500.0,0.00022191,2]
[356000128,1741791044192,-774.16,0.00022191,2]
[356000129,1741791044202,-185.2474828,0.00022191,2]
[356000130,1741791044211,-500.0,0.00022191,2]
[356000131,1741791044221,-509.3358538,0.00022191,2]
[356000132,1741791044230,-500.0,0.00022191,2]
[356000133,1741791044239,-518.16045965,0.00022191,2]
[356000134,1741791044248,-500.0,0.00022191,2]
[356000135,1741791044258,-226.82840483,0.00022191,2]
[356000136,1741791044268,-261.63865964,0.00022191,2]
[356000137,1741791044277,-500.0,0.00022191,2]
[356000138,1741791044287,-334.83226665,0.00022191,2]
[356000139,1741791044298,-505.58278429,0.00022191,2]
[356000140,1741791044307,-239.42349852,0.00022191,2]
[356000141,1741791044317,-500.0,0.00022191,2]
[356000142,1741791044326,-500.0,0.00022191,2]
[356000143,1741791044335,-275.43569481,0.00022191,2]
[356000144,1741791044344,-509.2465999,0.00022191,2]
[356000145,1741791044353,-500.0,0.00022191,2]
[356000146,1741791044362,-500.0,0.00022191,2]
[356000147,1741791044376,-862.58,0.00022191,2]
[356000148,1741791044385,-1093.17,0.00022191,2]
[356000149,1741791044395,-257.3944955,0.00022191,2]
[356000150,1741791044404,-314.93275862,0.00022191,2]
[356000151,1741791044414,-500.0,0.00022191,2]
[356000152,1741791044423,-500.0,0.00022191,2]
[356000153,1741791044433,-500.0,0.00022191,2]
[356000154,1741791044443,-624.56,0.00022191,2]
[356000155,1741791044454,-784.42,0.00022191,2]
[356000156,1741791044464,-500.0,0.00022191,2]
[356000157,1741791044474,-500.0,0.00022191,2]
[356000158,1741791044484,-500.0,0.00022191,2]
[356000159,1741791044493,-512.42216171,0.00022191,2]
[356000160,1741791044503,-562.30051542,0.00022191,2]
[356000161,1741791044512,-546.45,0.00022191,2]
[356000162,1741791044521,-1192.06,0.00022191,2]
[356000163,1741791044531,-500.0,0.00022191,2]
[356000164,1741791044540,-1228.55,0.00022191,2]
[356000165,1741791044552,-869.92,0.00022191,2]
[356000166,1741791044562,-500.0,0.00022191,2]
[356000167,1741791044570,-197.249733,0.00022191,2]
[356000168,1741791044580,-384.45958159,0.00022191,2]
[356000169,1741791044589,-500.0,0.00022191,2]
[356000170,1741791044599,-500.0,0.00022191,2]
[356000171,1741791044608,-343.88885827,0.00022191,2]
[356000172,1741791044618,-500.0,0.00022191,2]
[356000173,1741791044628,-211.01365239,0.00022191,2]
[356000174,1741791044638,-500.0,0.00022191,2]
[356000175,1741791044647,-500.0,0.00022191,2]
[356000176,1741791044656,-500.0,0.00022191,2]
[356000177,1741791044667,-524.66741718,0.00022191,2]
[356000178,1741791044677,-500.0,0.00022191,2]
[356000179,1741791044686,-252.90435017,0.00022191,2]
[356000180,1741791044695,-504.72440878,0.00022191,2]
[356000181,1741791044704,-521.23116966,0.00022191,2]
[356000182,1741791044713,-731.19,0.00022191,2]
[356000183,1741791044722,-500.0,0.00022191,2]
[356000184,1741791044732,-500.0,0.00022191,2]
[356000185,1741791044742,-500.0,0.00022191,2]
[356000186,1741791044751,-500.0,0.00022191,2]
[356000187,1741791044761,-567.86,0.00022191,2]
[356000188,1741791044770,-576.18946235,0.00022191,2]
[356000189,1741791044780,-519.17679491,0.00022191,2]
[356000190,1741791044789,-500.0,0.00022191,2]
[356000191,1741791044800,-522.34739435,0.00022191,2]
[356000192,1741791044809,-751.38,0.00022191,2]
[356000193,1741791044819,-500.0,0.00022191,2]
[356000194,1741791044828,-500.0,0.00022191,2]
[356000195,1741791044837,-224.3192094,0.00022191,2]
[356000196,1741791044847,-517.25234817,0.00022191,2]
[356000197,1741791044857,-500.0,0.00022191,2]
[356000198,1741791044866,-664.93,0.00022191,2]
[356000199,1741791044876,-500.0,0.00022191,2]
[356000200,1741791044885,-500.0,0.00022191,2]
[356000201,1741791044895,-500.0,0.00022191,2]
[356000202,1741791044904,-1999.74,0.00022191,2]
[356000203,1741791044915,-500.0,0.00022191,2]
[356000204,1741791044924,-500.0,0.00022191,2]
[356000205,1741791044934,-593.6,0.00022191,2]
[356000206,1741791044944,-343.57647693,0.00022191,2]
[356000207,1741791044953,-509.63409818,0.00022191,2]
[356000208,1741791044963,-1113.38,0.00022191,2]
[356000209,1741791044973,-500.0,0.00022191,2]
[356000210,1741791044983,-500.0,0.00022191,2]
[356000211,1741791044992,-500.0,0.00022191,2]
[356000212,1741791045002,-569.98,0.00022191,2]
[356000213,1741791045011,-500.0,0.00022191,2]
[356000214,1741791045020,-500.0,0.00022191,2]
[356000215,1741791045030,-20933.39,0.00022191,2]
[356000216,1741791045040,-948.89,0.00022191,2]
[356000217,1741791045053,-200.0,0.00022191,2]
[356000218,1741791045062,-500.0,0.00022191,2]
[356000219,1741791045072,-500.0,0.00022191,2]
[356000220,1741791045086,-523.98355532,0.00022191,2]
[356000221,1741791045098,-500.0,0.00022191,2]
[356000222,1741791045108,-500.0,0.00022191,2]
[356000223,1741791045118,-500.0,0.00022191,2]
[356000224,1741791045127,-500.0,0.00022191,2]
[356000225,1741791045138,-628.97,0.00022191,2]
[356000226,1741791045150,-555.62019798,0.00022191,2]
[356000227,1741791045160,-886.76,0.00022191,2]
[356000228,1741791045170,-1936.07,0.00022191,2]
[356000229,1741791045181,-1000.0,0.00022191,7]
[356000230,1741791045191,-500.0,0.00022191,2]
[356000231,1741791045200,-500.0,0.00022191,2]
[356000232,1741791045210,-1095.81,0.00022191,2]
[356000233,1741791045221,-523.93245276,0.00022191,2]
[356000234,1741791045231,-500.0,0.00022191,2]
[356000235,1741791045240,-931.19,0.00022191,2]
[356000236,1741791045250,-500.0,0.00022191,2]
[356000237,1741791045260,-931.69,0.00022191,2]
[356000238,1741791045270,-500.0,0.00022191,2]
[356000239,1741791045280,-1444.78,0.00022191,2]
[356000240,1741791045289,-500.0,0.00022191,2]
[356000241,1741791045300,-500.0,0.00022191,2]
[356000242,1741791045309,-791.66,0.00022191,2]
[356000243,1741791045319,-500.0,0.00022191,5]
[356000244,1741791045328,-500.0,0.00022191,2]
[356000245,1741791045337,-2945.61,0.00022191,2]
[356000246,1741791045346,-500.0,0.00022191,2]
[356000247,1741791045355,-500.0,0.00022191,2]
[356000248,1741791045368,-546.57561255,0.00022191,2]
[356000249,1741791045378,-815.66,0.00022191,2]
[356000250,1741791045388,-500.0,0.00022191,2]
[356000251,1741791045398,-24632.72,0.00022191,2]
[356000252,1741791045410,-500.0,0.00022191,2]
[356000253,1741791045419,-514.0144533,0.00022191,2]
[356000254,1741791045428,-500.0,0.00022191,2]
[356000255,1741791045437,-500.0,0.00022191,2]
[356000256,1741791045448,-500.0,0.00022191,2]
[356000257,1741791045456,-770.45,0.00022191,2]
[356000258,1741791045465,-500.0,0.00022191,2]
[356000259,1741791045475,-554.07105959,0.00022191,2]
[356000260,1741791045484,-500.0,0.00022191,2]
[356000261,1741791045493,-6470.55,0.00022191,2]
[356000262,1741791045502,-808.52,0.00022191,2]
[356000263,1741791045511,-499.2198666,0.00022191,2]
[356000264,1741791045521,-1766.1,0.00022191,2]
[356000265,1741791045531,-151.0,0.000222,5]
[356000266,1741791045540,-308.0,0.000224,10]
[356000267,1741791045551,-500.0,0.00022465,2]
[356000268,1741791045560,-500.0,0.00022465,2]
[356000269,1741791045569,-774.16,0.00022465,2]
[356000270,1741791045577,-500.0,0.00022465,2]
[356000271,1741791045587,-500.0,0.00022465,2]
[356000272,1741791045596,-499.83,0.00022465,2]
[356000273,1741791045605,-521.39,0.00022465,2]
[356000276,1741791045615,-500.0,0.00022465,2]
[356000279,1741791045624,-500.0,0.00022465,2]
[356000282,1741791045634,-500.0,0.00022465,2]
[356000285,1741791045643,-500.0,0.00022465,2]
[356000288,1741791045653,-862.58,0.00022465,2]
[356000290,1741791045662,-1093.17,0.00022465,2]
[356000292,1741791045671,-500.0,0.00022465,2]
[356000295,1741791045680,-500.0,0.00022465,2]
[356000298,1741791045690,-500.0,0.00022465,2]
[356000301,1741791045699,-624.56,0.00022465,2]
[356000304,1741791045709,-784.42,0.00022465,2]
[356000306,1741791045718,-500.0,0.00022465,2]
[356000309,1741791045727,-500.0,0.00022465,2]
[356000311,1741791045736,-500.0,0.00022465,2]
[356000315,1741791045745,-546.45,0.00022465,2]
[356000318,1741791045754,-1192.06,0.00022465,2]
[356000320,1741791045764,-500.0,0.00022465,2]
[356000323,1741791045773,-1228.55,0.00022465,2]
[356000325,1741791045782,-869.92,0.00022465,2]
[356000328,1741791045791,-500.0,0.00022465,2]
[356000331,1741791045806,-591.69451321,0.00022465,2]
[356000335,1741791045815,-500.0,0.00022465,2]
[356000340,1741791045825,-526.56638948,0.00022465,2]
[356000343,1741791045835,-186.13418734,0.00022465,2]
[356000347,1741791045846,-289.99761573,0.00022465,2]
[356000351,1741791045855,-395.76275535,0.00022465,2]
[356000354,1741791045865,-328.59940718,0.00022465,2]
[356000358,1741791045874,-731.19,0.00022465,2]
[356000361,1741791045883,-576.43797414,0.00022465,2]
[356000364,1741791045894,-500.0,0.00022465,2]
[356000367,1741791045903,-500.0,0.00022465,2]
[356000386,1741791046037,-500.0,0.00022465,2]
[356000388,1741791046050,-567.86,0.00022465,2]
[356000389,1741791046060,-500.0,0.00022465,2]
[356000390,1741791046071,-751.38,0.00022465,2]
[356000391,1741791046082,-500.0,0.00022465,2]
[356000392,1741791046092,-500.0,0.00022465,2]
[356000394,1741791046103,-500.0,0.00022465,2]
[356000396,1741791046113,-664.93,0.00022465,2]
[356000398,1741791046123,-538.6756551,0.00022465,2]
[356000400,1741791046134,-500.0,0.00022465,2]
[356000402,1741791046144,-500.0,0.00022465,2]
[356000404,1741791046154,-1999.74,0.00022465,2]
[356000406,1741791046164,-500.0,0.00022465,2]
[356000408,1741791046174,-500.0,0.00022465,2]
[356000409,1741791046184,-593.6,0.00022465,2]
[356000410,1741791046193,-1113.38,0.00022465,2]
[356000412,1741791046202,-500.0,0.00022465,2]
[356000414,1741791046211,-500.0,0.00022465,2]
[356000416,1741791046221,-500.0,0.00022465,2]
[356000418,1741791046231,-569.98,0.00022465,2]
[356000419,1741791046240,-500.0,0.00022465,2]
[356000421,1741791046250,-500.0,0.00022465,2]
[356000422,1741791046259,-20933.39,0.00022465,2]
[356000423,1741791046269,-948.89,0.00022465,2]
[356000424,1741791046279,-205.64621019,0.00022465,2]
[356000425,1741791046288,-500.0,0.00022465,2]
[356000426,1741791046299,-500.0,0.00022465,2]
[356000427,1741791046309,-214.21204069,0.00022465,2]
[356000428,1741791046319,-500.0,0.00022465,2]
[356000429,1741791046329,-500.0,0.00022465,2]
[356000431,1741791046339,-500.0,0.00022465,2]
[356000433,1741791046348,-628.97,0.00022465,2]
[356000435,1741791046357,-886.76,0.00022465,2]
[356000437,1741791046372,-1936.07,0.00022465,2]
[356000441,1741791046381,-1000.0,0.00022465,7]
[356000445,1741791046391,-500.0,0.00022465,2]
[356000447,1741791046400,-442.79837299,0.00022465,2]
[356000448,1741791046410,-1095.81,0.00022465,2]
[356000450,1741791046420,-392.647775,0.00022465,2]
[356000452,1741791046430,-931.19,0.00022465,2]
[356000454,1741791046439,-632.18534296,0.00022465,2]
[356000456,1741791046451,-931.69,0.00022465,2]
[356000457,1741791046462,-500.0,0.00022465,2]
[356000458,1741791046471,-1444.78,0.00022465,2]
[356000459,1741791046481,-500.0,0.00022465,2]
[356000460,1741791046491,-500.0,0.00022465,2]
[356000461,1741791046501,-791.66,0.00022465,2]
[356000462,1741791046511,-441.22683526,0.00022465,5]
[356000463,1741791046520,-500.0,0.00022465,2]
[356000464,1741791046530,-2945.61,0.00022465,2]
[356000465,1741791046540,-500.0,0.00022465,2]
[356000466,1741791046550,-500.0,0.00022465,2]
[356000468,1741791046559,-815.66,0.00022465,2]
[356000470,1741791046575,-500.0,0.00022465,2]
[356000472,1741791046585,-24632.72,0.00022465,2]
[356000474,1741791046594,-500.0,0.00022465,2]
[356000475,1741791046603,-500.0,0.00022465,2]
[356000477,1741791046613,-500.0,0.00022465,2]
[356000478,1741791046623,-500.0,0.00022465,2]
[356000479,1741791046632,-770.45,0.00022465,2]
[356000480,1741791046641,-507.56381159,0.00022465,2]
[356000481,1741791046650,-500.0,0.00022465,2]
[356000482,1741791046660,-6470.55,0.00022465,2]
[356000483,1741791046669,-808.52,0.00022465,2]
[356000484,1741791046679,-1766.1,0.00022465,2]
[356000485,1741791046688,-500.0,0.00022739,2]
[356000486,1741791046699,-500.0,0.00022739,2]
[356000487,1741791046710,-774.16,0.00022739,2]
[356000488,1741791046720,-500.0,0.00022739,2]
[356000489,1741791046730,-500.0,0.00022739,2]
[356000490,1741791046739,-500.0,0.00022739,2]
[356000491,1741791046749,-500.0,0.00022739,2]
[356000492,1741791046759,-500.0,0.00022739,2]
[356000493,1741791046768,-500.0,0.00022739,2]
[356000494,1741791046777,-862.58,0.00022739,2]
[356000495,1741791046787,-1093.17,0.00022739,2]
[356000496,1741791046798,-500.0,0.00022739,2]
[356000497,1741791046808,-500.0,0.00022739,2]
[356000498,1741791046818,-500.0,0.00022739,2]
[356000499,1741791046828,-624.56,0.00022739,2]
[356000500,1741791046837,-784.42,0.00022739,2]
[356000501,1741791046847,-500.0,0.00022739,2]
[356000502,1741791046856,-366.45740757,0.00022739,2]
[356000503,1741791046866,-500.0,0.00022739,2]
[356000504,1741791046875,-546.45,0.00022739,2]
[356000505,1741791046884,-1192.06,0.00022739,2]
[356000506,1741791046894,-500.0,0.00022739,2]
[356000507,1741791046906,-1228.55,0.00022739,2]
[356000508,1741791046915,-869.92,0.00022739,2]
[356000509,1741791046926,-500.0,0.00022739,2]
[356000510,1741791046936,-500.0,0.00022739,2]
[356000511,1741791046946,-731.19,0.00022739,2]
[356000512,1741791046956,-500.0,0.00022739,2]
[356000513,1741791046965,-286.84387084,0.00022739,2]
[356000514,1741791046975,-500.0,0.00022739,2]
[356000515,1741791046985,-567.86,0.00022739,2]
[356000516,1741791046995,-500.0,0.00022739,2]
[356000517,1741791047004,-751.38,0.00022739,2]
[356000518,1741791047014,-500.0,0.00022739,2]
[356000519,1741791047023,-500.0,0.00022739,2]
[356000520,1741791047033,-500.0,0.00022739,2]
[356000521,1741791047043,-664.93,0.00022739,2]
[356000522,1741791047053,-500.0,0.00022739,2]
[356000523,1741791047063,-500.0,0.00022739,2]
[356000524,1741791047073,-1999.74,0.00022739,2]
[356000525,1741791047082,-500.0,0.00022739,2]
[356000526,1741791047091,-500.0,0.00022739,2]
[356000527,1741791047101,-593.6,0.00022739,2]
[356000528,1741791047111,-1113.38,0.00022739,2]
[356000529,1741791047121,-500.0,0.00022739,2]
[356000530,1741791047131,-500.0,0.00022739,2]
[356000531,1741791047142,-500.0,0.00022739,2]
[356000532,1741791047151,-569.98,0.00022739,2]
[356000533,1741791047161,-522.32441203,0.00022739,2]
[356000534,1741791047170,-500.0,0.00022739,2]
[356000535,1741791047180,-20933.39,0.00022739,2]
[356000536,1741791047190,-948.89,0.00022739,2]
[356000537,1741791047199,-500.0,0.00022739,2]
[356000538,1741791047209,-529.18547977,0.00022739,2]
[356000539,1741791047219,-500.0,0.00022739,2]
[356000540,1741791047228,-212.80181401,0.00022739,2]
[356000541,1741791047237,-500.0,0.00022739,2]
[356000542,1741791047246,-628.97,0.00022739,2]
[356000543,1741791047256,-886.76,0.00022739,2]
[356000544,1741791047266,-1936.07,0.00022739,2]
[356000545,1741791047275,-1000.0,0.00022739,7]
[356000546,1741791047284,-500.0,0.00022739,2]
[356000547,1741791047294,-1095.81,0.00022739,2]
[356000548,1741791047305,-931.19,0.00022739,2]
[356000549,1741791047315,-931.69,0.00022739,2]
[356000550,1741791047324,-500.0,0.00022739,2]
[356000551,1741791047334,-1444.78,0.00022739,2]
[356000552,1741791047343,-500.0,0.00022739,2]
[356000553,1741791047353,-500.0,0.00022739,2]
[356000554,1741791047363,-791.66,0.00022739,2]
[356000555,1741791047375,-500.0,0.00022739,2]
[356000556,1741791047385,-2945.61,0.00022739,2]
[356000557,1741791047395,-500.0,0.00022739,2]
[356000558,1741791047404,-500.0,0.00022739,2]
[356000559,1741791047415,-500.0,0.00022739,2]
[356000560,1741791047425,-24632.72,0.00022739,2]
[356000561,1741791047434,-815.66,0.00022739,2]
[356000562,1741791047445,-500.0,0.00022739,2]
[356000563,1741791047454,-500.0,0.00022739,2]
[356000564,1741791047465,-500.0,0.00022739,2]
[356000565,1741791047474,-500.0,0.00022739,2]
[356000566,1741791047484,-770.45,0.00022739,2]
[356000567,1741791047493,-500.0,0.00022739,2]
[356000568,1741791047502,-6470.55,0.00022739,2]
[356000569,1741791047512,-808.52,0.00022739,2]
[356000570,1741791047521,-1766.1,0.00022739,2]
[356000571,1741791047531,-150.0,0.00022747,2]
[356000572,1741791047541,-1920.0,0.00022747,2]
[356000573,1741791047553,-540.0,0.00022747,2]
[356000574,1741791047562,-2272.0,0.00022747,2]
[356000575,1741791047571,-1506.82113586,0.00022762,3]
[356000576,1741791047581,-151.0,0.000228,8]
[356000577,1741791047590,-151.0,0.000229,7]
[356000578,1741791047599,-391.57163783,0.00022913,2]
[356000579,1741791047609,-1024.23869445,0.00022993,2]
[356000580,1741791047619,-416.66666667,0.00023,3]
[356000581,1741791047629,-15577.25547611,0.00023,3]
[356000582,1741791047638,-500.0,0.00023013,2]
[356000583,1741791047647,-500.0,0.00023013,2]
[356000584,1741791047657,-774.16,0.00023013,2]
[356000585,1741791047666,-500.0,0.00023013,2]
[356000586,1741791047676,-500.0,0.00023013,2]
[356000587,1741791047687,-500.0,0.00023013,2]
[356000588,1741791047704,-500.0,0.00023013,2]
[356000589,1741791047714,-500.0,0.00023013,2]
[356000590,1741791047724,-500.0,0.00023013,2]
[356000591,1741791047734,-862.58,0.00023013,2]
[356000592,1741791047744,-1093.17,0.00023013,2]
[356000593,1741791047753,-500.0,0.00023013,2]
[356000594,1741791047763,-500.0,0.00023013,2]
[356000595,1741791047772,-500.0,0.00023013,2]
[356000596,1741791047782,-624.56,0.00023013,2]
[356000597,1741791047792,-784.42,0.00023013,2]
[356000598,1741791047803,-500.0,0.00023013,2]
[356000599,1741791047814,-500.0,0.00023013,2]
[356000600,1741791047823,-546.45,0.00023013,2]
[356000601,1741791047832,-1192.06,0.00023013,2]
[356000602,1741791047841,-500.0,0.00023013,2]
[356000603,1741791047850,-1228.55,0.00023013,2]
[356000604,1741791047860,-869.92,0.00023013,2]
[356000605,1741791047870,-500.0,0.00023013,2]
[356000606,1741791047879,-500.0,0.00023013,2]
[356000607,1741791047889,-731.19,0.00023013,2]
[356000608,1741791047898,-500.0,0.00023013,2]
[356000609,1741791047907,-500.0,0.00023013,2]
[356000610,1741791047917,-567.86,0.00023013,2]
[356000611,1741791047926,-500.0,0.00023013,2]
[356000612,1741791047936,-751.38,0.00023013,2]
[356000613,1741791047946,-500.0,0.00023013,2]
[356000614,1741791047955,-500.0,0.00023013,2]
[356000615,1741791047965,-500.0,0.00023013,2]
[356000616,1741791047974,-664.93,0.00023013,2]
[356000617,1741791047984,-500.0,0.00023013,2]
[356000618,1741791047993,-500.0,0.00023013,2]
[356000619,1741791048003,-1999.74,0.00023013,2]
[356000620,1741791048015,-181.48827802,0.00023013,2]
[356000621,1741791048025,-500.0,0.00023013,2]
[356000622,1741791048035,-593.6,0.00023013,2]
[356000623,1741791048044,-1113.38,0.00023013,2]
[356000624,1741791048055,-500.0,0.00023013,2]
[356000625,1741791048065,-186.49743153,0.00023013,2]
[356000626,1741791048075,-568.32383695,0.00023013,2]
[356000627,1741791048084,-569.98,0.00023013,2]
[356000628,1741791048094,-500.0,0.00023013,2]
[356000629,1741791048103,-20933.39,0.00023013,2]
[356000630,1741791048113,-948.89,0.00023013,2]
[356000631,1741791048122,-486.34952079,0.00023013,2]
[356000632,1741791048132,-500.0,0.00023013,2]
[356000633,1741791048142,-500.0,0.00023013,2]
[356000634,1741791048151,-628.97,0.00023013,2]
[356000635,1741791048162,-886.76,0.00023013,2]
[356000636,1741791048171,-1936.07,0.00023013,2]
[356000637,1741791048180,-1000.0,0.00023013,7]
[356000638,1741791048190,-170.93372155,0.00023013,2]
[356000639,1741791048199,-1095.81,0.00023013,2]
[356000640,1741791048209,-931.19,0.00023013,2]
[356000641,1741791048219,-931.69,0.00023013,2]
[356000642,1741791048228,-500.0,0.00023013,2]
[356000643,1741791048238,-1444.78,0.00023013,2]
[356000644,1741791048247,-500.0,0.00023013,2]
[356000645,1741791048257,-500.0,0.00023013,2]
[356000646,1741791048266,-791.66,0.00023013,2]
[356000647,1741791048276,-500.0,0.00023013,2]
[356000648,1741791048286,-2945.61,0.00023013,2]
[356000649,1741791048297,-500.0,0.00023013,2]
[356000650,1741791048307,-500.0,0.00023013,2]
[356000651,1741791048317,-500.0,0.00023013,2]
[356000652,1741791048327,-24632.72,0.00023013,2]
[356000653,1741791048337,-815.66,0.00023013,2]
[356000654,1741791048347,-500.0,0.00023013,2]
[356000655,1741791048356,-500.0,0.00023013,2]
[356000656,1741791048367,-500.0,0.00023013,2]
[356000657,1741791048380,-500.0,0.00023013,2]
[356000658,1741791048389,-770.45,0.00023013,2]
[356000659,1741791048399,-500.0,0.00023013,2]
[356000660,1741791048410,-6470.55,0.00023013,2]
[356000661,1741791048420,-808.52,0.00023013,2]
[356000662,1741791048430,-1766.1,0.00023013,2]
[356000663,1741791048440,-500.0,0.00023287,2]
[356000664,1741791048451,-529.33615281,0.00023287,2]
[356000665,1741791048459,-774.16,0.00023287,2]
[356000666,1741791048468,-500.0,0.00023287,2]
[356000667,1741791048478,-500.0,0.00023287,2]
[356000668,1741791048487,-500.0,0.00023287,2]
[356000669,1741791048496,-500.0,0.00023287,2]
[356000670,1741791048506,-500.0,0.00023287,2]
[356000671,1741791048515,-500.0,0.00023287,2]